bitfinex-derivatives/quotes_BTCF0:USTF0_20240817
["timestamp","ask_amount","ask_price","bid_price","bid_amount"]
[1723857314085,0.16304,59208.0,59207.0,0.44637914]
[1723857314392,0.16304,59208.0,59207.0,0.50538339]
[1723857314583,0.16304,59208.0,59207.0,0.4120052]
[1723857314988,0.16304,59208.0,59207.0,0.36195714]
[1723857315481,0.16304,59208.0,59207.0,0.4120052]
[1723857315681,0.16304,59208.0,59207.0,0.36195714]
[1723857316083,0.16304,59208.0,59207.0,0.4120052]
[1723857319290,0.16304,59208.0,59207.0,0.41201385]
[1723857321094,0.21264,59208.0,59205.0,0.05007343]
[1723857321294,0.21264,59208.0,59197.0,0.44643205]
[1723857321295,0.084425,59205.0,59204.0,0.05007343]
[1723857321492,0.084427,59204.0,59203.0,0.05007343]
[1723857321690,0.537827,59204.0,59203.0,0.05007343]
[1723857321998,0.084428,59203.0,59202.0,0.05007343]
[1723857322297,0.36015714,59203.0,59202.0,0.05007343]
[1723857322502,0.36015714,59203.0,59200.0,0.17170685]
[1723857323583,0.36015714,59203.0,59202.0,0.3608]
[1723857323793,0.36015714,59203.0,59202.0,0.42752531]
[1723857323982,0.36515714,59203.0,59202.0,0.42752531]
[1723857324183,0.36515714,59203.0,59202.0,0.36076]
[1723857324389,0.36515714,59203.0,59202.0,0.42752531]
[1723857324590,0.36515714,59203.0,59202.0,0.36076]
[1723857325085,0.36515714,59203.0,59202.0,0.42752531]
[1723857325292,0.36515714,59203.0,59202.0,0.43508384]
[1723857325895,0.36515714,59203.0,59202.0,0.51951284]
[1723857327398,0.36515714,59203.0,59202.0,0.73153132]
[1723857327606,0.36515714,59203.0,59202.0,0.64813927]
[1723857327789,0.30603833,59203.0,59202.0,0.64813927]
[1723857328103,0.00515714,59203.0,59202.0,0.64813927]
[1723857328495,0.00515714,59203.0,59202.0,0.71232531]
[1723857329603,0.00515714,59203.0,59202.0,0.71236531]
[1723857331008,0.00515714,59203.0,59202.0,0.61101699]
[1723857331202,0.00515714,59203.0,59202.0,0.81243272]
[1723857332804,0.00515714,59203.0,59202.0,0.45163272]
[1723857333008,0.00515714,59203.0,59202.0,1.17323272]
[1723857333211,0.00025323,59212.0,59211.0,0.084417]
[1723857333506,0.0504753,59222.0,59211.0,0.8890564]
[1723857333707,0.0504753,59224.0,59221.0,0.4542]
[1723857333907,0.0504753,59224.0,59222.0,0.14117558]
[1723857334109,0.0504753,59225.0,59223.0,0.07432149]
[1723857334411,0.5046753,59226.0,59224.0,0.12444273]
[1723857334710,0.5046753,59226.0,59225.0,0.07432149]
[1723857335003,0.5046753,59226.0,59224.0,0.05012124]
[1723857335207,0.50476434,59226.0,59222.0,0.0620281]
[1723857335410,0.0934,59223.0,59222.0,0.05012124]
[1723857335710,0.0934,59223.0,59222.0,0.12442504]
[1723857336206,0.0934,59223.0,59222.0,0.1587048]
[1723857336407,0.09344,59223.0,59222.0,0.1587048]
[1723857337002,0.10744,59223.0,59222.0,0.1597048]
[1723857337203,0.10744,59223.0,59222.0,0.1225529]
[1723857337403,0.10744,59223.0,59222.0,0.1607048]
[1723857341210,0.12744,59223.0,59222.0,0.1607048]
[1723857341410,0.12744,59223.0,59222.0,0.1235529]
[1723857341617,0.12744,59223.0,59222.0,0.1607048]
[1723857341812,0.12744,59223.0,59222.0,0.1235529]
[1723857342018,0.12744,59223.0,59222.0,0.1607048]
[1723857343210,0.12744,59223.0,59222.0,0.0763038]
[1723857343406,0.12744,59223.0,59222.0,0.002]
[1723857343614,0.13915429,59223.0,59222.0,0.002]
[1723857343814,1.18067763,59223.0,59222.0,0.002]
[1723857344122,0.084405,59219.0,59218.0,0.00025323]
[1723857344413,0.517805,59219.0,59218.0,0.00025323]
[1723857344711,1.424405,59219.0,59218.0,0.00025323]
[1723857344907,1.473305,59219.0,59218.0,0.00025323]
[1723857345112,1.073305,59219.0,59218.0,0.00025323]
[1723857345306,1.073345,59219.0,59218.0,0.00025323]
[1723857345707,1.085345,59219.0,59218.0,0.00125323]
[1723857346311,0.485345,59219.0,59218.0,0.00125323]
[1723857346615,0.54983227,59219.0,59218.0,0.07656609]
[1723857346821,0.54983049,59219.0,59218.0,0.07656609]
[1723857348113,0.54983049,59219.0,59218.0,0.03940966]
[1723857348316,0.49934,59219.0,59218.0,0.03940976]
[1723857349716,0.49934,59219.0,59218.0,0.03941093]
[1723857349923,1.00594,59219.0,59218.0,0.03941093]
[1723857350720,1.00594,59219.0,59218.0,0.00225323]
[1723857351214,1.07298301,59219.0,59218.0,0.00225323]
[1723857351713,1.07328126,59219.0,59218.0,0.00225323]
[1723857351919,1.00594,59219.0,59218.0,0.00225323]
[1723857352314,0.084411,59215.0,59211.0,0.05012124]
[1723857352516,0.05051293,59213.0,59212.0,0.07432068]
[1723857352823,0.32,59213.0,59212.0,0.07432068]
[1723857353322,0.46391293,59213.0,59212.0,0.07432068]
[1723857353525,0.4134,59213.0,59212.0,0.12444192]
[1723857353721,0.4134,59213.0,59212.0,0.08728089]
[1723857354031,0.4134,59213.0,59212.0,0.12444054]
[1723857354416,0.4134,59213.0,59212.0,0.0743193]
[1723857355015,0.4184,59213.0,59212.0,0.0753193]
[1723857355825,0.4254,59213.0,59212.0,0.0763193]
[1723857357115,0.332,59213.0,59212.0,0.5305193]
[1723857357320,0.332,59213.0,59212.0,0.58058973]
[1723857357617,0.332,59213.0,59212.0,0.5305193]
[1723857357817,0.332,59213.0,59212.0,0.5305148]
[1723857358823,0.332,59213.0,59212.0,0.53051476]
[1723857360222,0.332,59213.0,59212.0,0.59736885]
[1723857360419,0.332,59213.0,59212.0,0.59469404]
[1723857361123,0.332,59213.0,59212.0,0.59468571]
[1723857361928,0.332,59213.0,59212.0,0.67910071]
[1723857362120,0.332,59213.0,59212.0,0.76266357]
[1723857362625,0.332,59213.0,59212.0,0.89126935]
[1723857362825,0.332,59213.0,59212.0,0.53046935]
[1723857363020,0.332,59213.0,59212.0,0.89126935]
[1723857363334,0.332,59213.0,59212.0,1.39790935]
[1723857364025,0.332,59213.0,59212.0,1.26930357]
[1723857364325,0.332,59213.0,59212.0,1.39790961]
[1723857364716,0.332,59213.0,59212.0,1.2594239]
[1723857365027,0.332,59213.0,59212.0,1.39790952]
[1723857365417,0.332,59213.0,59212.0,0.89126951]
[1723857366524,0.332,59213.0,59212.0,0.85411491]
[1723857366730,0.4254,59213.0,59212.0,0.79786994]
[1723857367025,0.4254,59213.0,59212.0,0.07630958]
[1723857367218,0.4254,59213.0,59212.0,0.14312722]
[1723857367415,0.509814,59213.0,59212.0,0.07630958]
[1723857367826,0.56032693,59213.0,59212.0,0.07630958]
[1723857368219,0.56038158,59213.0,59212.0,0.07630958]
[1723857368417,0.509814,59213.0,59212.0,0.002]
[1723857368631,0.509814,59213.0,59212.0,0.0763214]
[1723857369116,0.509814,59213.0,59212.0,0.03916123]
[1723857369319,0.509814,59213.0,59212.0,0.07632223]
[1723857369717,0.509814,59213.0,59212.0,0.03916123]
[1723857369920,0.509814,59213.0,59212.0,0.03916127]
[1723857370320,0.509814,59213.0,59212.0,0.07632264]
[1723857370530,0.509814,59213.0,59212.0,0.07632269]
[1723857370730,0.909814,59213.0,59212.0,0.07632269]
[1723857370929,0.97716457,59213.0,59212.0,0.03916137]
[1723857371130,0.909814,59213.0,59212.0,0.03916137]
[1723857371427,0.509814,59213.0,59212.0,0.03916137]
[1723857372531,0.57723995,59213.0,59212.0,0.03916137]
[1723857372727,0.509814,59213.0,59212.0,0.03916137]
[1723857372927,0.509814,59213.0,59212.0,0.07632239]
[1723857373128,0.509814,59213.0,59212.0,0.076322]
[1723857375325,0.509814,59213.0,59212.0,0.039161]
[1723857375830,0.57723995,59213.0,59212.0,0.002]
[1723857377919,0.509814,59213.0,59212.0,0.002]
[1723857378319,0.509814,59213.0,59212.0,0.03916054]
[1723857378522,0.509814,59213.0,59212.0,0.07632089]
[1723857378934,0.509814,59213.0,59212.0,0.03916054]
[1723857379230,0.509814,59213.0,59212.0,0.07632084]
[1723857380129,0.416414,59213.0,59212.0,0.07632084]
[1723857380333,0.332,59213.0,59212.0,0.53052084]
[1723857380540,0.332,59213.0,59212.0,0.59733848]
[1723857380831,0.332,59213.0,59212.0,0.53052084]
[1723857381133,0.332,59213.0,59212.0,0.61493584]
[1723857381331,0.332,59213.0,59212.0,0.5777753]
[1723857381528,0.332,59213.0,59212.0,0.61492784]
[1723857382335,0.4254,59213.0,59212.0,0.58570711]
[1723857383636,0.4254,59213.0,59212.0,0.22490711]
[1723857383836,0.4254,59213.0,59212.0,0.58570711]
[1723857385534,0.332,59213.0,59212.0,0.51139281]
[1723857385733,0.332,59213.0,59212.0,0.58570395]
[1723857386623,0.332,59213.0,59212.0,0.22490395]
[1723857386829,0.332,59213.0,59212.0,0.58570395]
[1723857389231,0.332,59213.0,59212.0,0.65244398]
[1723857389537,0.4254,59213.0,59212.0,0.48437057]
[1723857389838,0.4254,59213.0,59212.0,0.58570389]
[1723857390028,0.4254,59213.0,59212.0,0.65244695]
[1723857390229,0.4254,59213.0,59212.0,0.65244728]
[1723857392231,0.4254,59213.0,59212.0,0.61529171]
[1723857392437,0.4254,59213.0,59212.0,0.65244739]
[1723857393435,0.4254,59213.0,59212.0,0.58570433]
[1723857393842,0.4254,59213.0,59212.0,0.58570444]
[1723857394634,0.4254,59213.0,59212.0,0.60341506]
[1723857395041,0.509814,59213.0,59212.0,0.51900006]
[1723857395247,0.509814,59213.0,59212.0,0.0763114]
[1723857395844,0.509814,59213.0,59212.0,0.12640462]
[1723857396045,0.509814,59213.0,59212.0,0.0763114]
[1723857396437,0.509814,59213.0,59212.0,0.14049265]
[1723857396642,0.509814,59213.0,59212.0,0.0763114]
[1723857397140,0.332,59213.0,59212.0,0.29168256]
[1723857397349,0.332,59213.0,59212.0,0.2249079]
[1723857397653,0.332,59213.0,59212.0,0.38104067]
[1723857397838,0.332,59213.0,59212.0,0.64584181]
[1723857399249,0.332,59213.0,59212.0,1.00664181]
[1723857399944,0.332,59213.0,59212.0,1.00665733]
[1723857401341,0.332,59213.0,59212.0,1.00665405]
[1723857401948,0.332,59213.0,59212.0,1.00665244]
[1723857402246,0.332,59213.0,59212.0,0.92308958]
[1723857402449,0.332,59213.0,59212.0,0.92309942]
[1723857402649,0.332,59213.0,59212.0,0.90582698]
[1723857403241,0.332,59213.0,59212.0,0.82232211]
[1723857403751,0.332,59213.0,59212.0,0.82232212]
[1723857403947,0.332,59213.0,59212.0,0.90583083]
[1723857404458,0.332,59213.0,59212.0,0.82232212]
[1723857404756,0.332,59213.0,59212.0,0.90583538]
[1723857405347,0.332,59213.0,59212.0,0.82232212]
[1723857408256,0.332,59213.0,59212.0,0.41652212]
[1723857408555,0.332,59213.0,59212.0,0.77732212]
[1723857409756,0.332,59213.0,59212.0,0.73202212]
[1723857409943,0.332,59213.0,59212.0,0.65771347]
[1723857410141,0.332,59213.0,59212.0,0.73202153]
[1723857410352,0.032,59213.0,59212.0,0.73202153]
[1723857410557,0.032,59213.0,59212.0,0.73202123]
[1723857413848,0.032,59213.0,59212.0,0.67714771]
[1723857414048,0.032,59213.0,59212.0,0.71430179]
[1723857414253,0.032,59213.0,59212.0,0.37121088]
[1723857414453,0.032,59213.0,59212.0,0.73201088]
[1723857415151,0.032,59213.0,59212.0,0.73201116]
[1723857415661,0.032,59213.0,59212.0,0.73201127]
[1723857417858,0.11798793,59222.0,59212.0,0.88099627]
[1723857418050,0.0934,59226.0,59221.0,0.4542]
[1723857418249,0.0934,59226.0,59223.0,0.08346884]
[1723857418454,0.0934,59226.0,59221.0,0.815]
[1723857418455,0.0934,59226.0,59224.0,0.28474049]
[1723857418650,0.0934,59226.0,59225.0,0.28474049]
[1723857418854,0.0978,59231.0,59225.0,0.16572736]
[1723857419060,0.0978,59231.0,59230.0,0.3608]
[1723857419247,0.19145323,59231.0,59230.0,0.4350906]
[1723857420258,0.20545323,59231.0,59230.0,0.4360906]
[1723857420963,1.38632123,59231.0,59230.0,0.1253106]
[1723857421259,1.37232123,59231.0,59230.0,0.03815004]
[1723857421462,1.37232123,59231.0,59230.0,0.002]
[1723857421463,1.38632123,59231.0,59230.0,0.002]
[1723857422163,1.38632123,59231.0,59220.0,0.00025323]
[1723857422164,0.084397,59225.0,59224.0,0.05002]
[1723857422468,0.0844,59223.0,59211.0,0.05002]
[1723857422656,0.0934,59212.0,59209.0,0.06669723]
[1723857422848,0.0934,59212.0,59210.0,0.05006468]
[1723857422849,0.0954,59211.0,59210.0,0.05006468]
[1723857423049,0.493217,59211.0,59210.0,0.05006468]
[1723857423250,0.493217,59211.0,59209.0,0.05006468]
[1723857423452,0.0934,59210.0,59209.0,0.05006468]
[1723857423658,0.1334,59210.0,59209.0,0.05006468]
[1723857424565,0.217859,59210.0,59208.0,0.05006468]
[1723857424957,0.179859,59210.0,59208.0,0.05006468]
[1723857425258,0.084419,59209.0,59208.0,0.05006468]
[1723857425460,0.084421,59208.0,59207.0,0.42261038]
[1723857425664,0.104421,59208.0,59207.0,0.3725457]
[1723857426055,0.084421,59208.0,59207.0,0.3725457]
[1723857426468,0.104421,59208.0,59207.0,0.4225826]
[1723857426663,0.104461,59208.0,59207.0,0.4225826]
[1723857427368,0.104461,59208.0,59207.0,0.3725457]
[1723857428764,0.084461,59208.0,59207.0,0.3725457]
[1723857430874,4e-05,59208.0,59207.0,0.5070046]
[1723857431077,4e-05,59208.0,59207.0,0.4569677]
[1723857431765,0.04685323,59216.0,59207.0,1.3434117]
[1723857431968,0.00025323,59216.0,59215.0,0.538611]
[1723857432172,0.00025323,59216.0,59215.0,0.602797]
[1723857432779,0.00025323,59216.0,59215.0,0.538611]
[1723857433079,0.00025323,59216.0,59215.0,0.60278148]
[1723857433482,0.00925323,59216.0,59215.0,0.60378148]
[1723857433673,0.00925323,59216.0,59215.0,0.60478148]
[1723857434076,0.00925323,59216.0,59215.0,0.64193281]
[1723857434474,0.00925323,59216.0,59215.0,0.67908414]
[1723857435275,1e-08,59216.0,59215.0,0.69677137]
[1723857435777,1e-08,59216.0,59215.0,0.67908414]
[1723857436481,1e-08,59216.0,59215.0,0.69677119]
[1723857436672,1e-08,59216.0,59215.0,0.55253226]
[1723857436868,1e-08,59216.0,59215.0,0.70869129]
[1723857437191,1e-08,59216.0,59215.0,0.69100429]
[1723857437482,1e-08,59216.0,59215.0,0.7086913]
[1723857437986,1e-08,59216.0,59215.0,0.70869129]
[1723857441473,1e-08,59216.0,59215.0,0.70869097]
[1723857441676,1e-08,59216.0,59215.0,0.83728311]
[1723857444082,0.00025323,59221.0,59220.0,0.084404]
[1723857444284,0.00025323,59221.0,59220.0,0.74360755]
[1723857445283,0.00025323,59221.0,59220.0,0.74460755]
[1723857446783,0.00925323,59221.0,59220.0,0.74560755]
[1723857447091,0.0934,59226.0,59225.0,0.084397]
[1723857447274,0.0934,59226.0,59225.0,0.51949874]
[1723857448675,0.04565323,59231.0,59230.0,0.08439]
[1723857448884,0.04565323,59231.0,59230.0,0.61288435]
[1723857448885,0.02025323,59231.0,59230.0,0.61288435]
[1723857449081,0.02025323,59231.0,59230.0,0.53859]
[1723857449290,0.1234,59237.0,59234.0,0.084384]
[1723857449291,0.0934,59237.0,59234.0,0.084384]
[1723857449481,0.0934,59237.0,59236.0,0.3608]
[1723857449785,0.0934,59237.0,59236.0,0.39794135]
[1723857450089,0.0934,59237.0,59236.0,0.3608]
[1723857450790,0.0934,59237.0,59236.0,0.3618]
[1723857450986,0.00025323,59242.0,59236.0,0.4552]
[1723857451186,0.00025323,59242.0,59241.0,0.084374]
[1723857451389,0.00025323,59242.0,59241.0,0.12151534]
[1723857451691,0.09365323,59242.0,59241.0,0.12151534]
[1723857452282,0.09365323,59242.0,59241.0,0.084374]
[1723857452482,0.09365323,59242.0,59241.0,0.085374]
[1723857452988,0.09365323,59242.0,59241.0,0.086374]
[1723857453582,0.09365323,59242.0,59241.0,0.09811968]
[1723857454082,0.09365323,59242.0,59241.0,0.01374568]
[1723857454286,0.11365323,59242.0,59241.0,0.002]
[1723857455186,0.19802523,59242.0,59241.0,0.002]
[1723857455387,0.17802523,59242.0,59241.0,0.002]
[1723857455986,0.00025323,59242.0,59241.0,0.002]
[1723857456191,0.09365323,59242.0,59241.0,0.002]
[1723857458894,0.10365323,59242.0,59241.0,0.002]
[1723857462192,0.01025323,59242.0,59241.0,0.002]
[1723857462400,0.10365323,59242.0,59241.0,0.002]
[1723857462702,0.00025323,59242.0,59241.0,0.002]
[1723857463001,0.00025323,59242.0,59241.0,0.086374]
[1723857465198,0.02760203,59242.0,59241.0,0.086374]
[1723857467408,0.02760203,59242.0,59241.0,0.447174]
[1723857469296,0.12886101,59242.0,59241.0,0.447174]
[1723857469694,0.12760203,59242.0,59241.0,0.3628]
[1723857469894,0.21197403,59242.0,59241.0,0.3628]
[1723857470108,0.24576554,59242.0,59241.0,0.3628]
[1723857471094,0.24576554,59242.0,59241.0,0.3618]
[1723857471300,0.24576554,59242.0,59241.0,0.3628]
[1723857473201,0.18462523,59242.0,59241.0,0.3628]
[1723857475407,0.18462523,59242.0,59241.0,0.41259606]
[1723857475614,0.18462523,59242.0,59241.0,0.05179606]
[1723857475806,0.18462523,59242.0,59241.0,0.41259606]
[1723857476515,0.18462523,59242.0,59241.0,0.3628]
[1723857477608,1.36745323,59242.0,59239.0,0.04989966]
[1723857477810,0.0934,59240.0,59238.0,0.3608]
[1723857478013,0.0934,59239.0,59234.0,0.04989966]
[1723857478207,0.0934,59239.0,59233.0,0.36105323]
[1723857478208,0.0934,59234.0,59233.0,0.36105323]
[1723857478602,0.0934,59236.0,59233.0,0.46573846]
[1723857478808,0.0934,59239.0,59237.0,0.084379]
[1723857479003,0.0934,59239.0,59238.0,0.51173855]
[1723857479218,0.0944,59239.0,59238.0,0.51173855]
[1723857479813,0.0934,59239.0,59238.0,0.51173855]
[1723857480015,0.1034,59239.0,59238.0,0.51173855]
[1723857480216,0.1034,59239.0,59238.0,0.54887848]
[1723857480408,0.1044,59239.0,59238.0,0.001]
[1723857480608,0.188777,59239.0,59238.0,0.001]
[1723857481420,0.189777,59239.0,59238.0,0.002]
[1723857482214,0.096377,59239.0,59238.0,0.002]
[1723857482410,0.25717871,59239.0,59238.0,0.002]
[1723857482614,0.189777,59239.0,59238.0,0.002]
[1723857483017,0.24032525,59239.0,59238.0,0.002]
[1723857483721,0.1054,59239.0,59238.0,0.3628]
[1723857485219,0.1054,59239.0,59238.0,0.447178]
[1723857485421,0.1054,59239.0,59238.0,0.086378]
[1723857485422,0.15594825,59239.0,59238.0,0.086378]
[1723857485923,0.002,59239.0,59238.0,0.447178]
[1723857486142,0.002,59239.0,59238.0,0.52146007]
[1723857488439,0.002,59239.0,59238.0,0.52145849]
[1723857489441,0.002,59239.0,59238.0,0.58797741]
[1723857491241,0.002,59239.0,59238.0,0.65212746]
[1723857492639,0.002,59239.0,59238.0,0.51369692]
[1723857492838,0.002,59239.0,59238.0,0.65212604]
[1723857493234,0.002,59239.0,59238.0,0.66977702]
[1723857493943,0.112,59239.0,59238.0,0.65212604]
[1723857494328,0.112,59239.0,59238.0,0.66977866]
[1723857495337,0.002,59239.0,59238.0,0.66977866]
[1723857495537,0.002,59239.0,59238.0,0.60325974]
[1723857496642,0.022,59239.0,59238.0,0.60326191]
[1723857497538,0.022,59239.0,59238.0,0.58560712]
[1723857498343,0.022,59239.0,59238.0,0.6521787]
[1723857500144,0.022,59239.0,59238.0,0.2913787]
[1723857500348,0.022,59239.0,59238.0,0.6521787]
[1723857500741,0.022,59239.0,59238.0,0.61504008]
[1723857500950,0.022,59239.0,59238.0,0.65217993]
[1723857501449,0.002,59239.0,59238.0,0.58560835]
[1723857503550,0.012,59239.0,59238.0,0.58560835]
[1723857504351,0.002,59239.0,59238.0,0.58560835]
[1723857504850,0.002,59239.0,59238.0,0.22480709]
[1723857505049,0.002,59239.0,59238.0,0.58560709]
[1723857505241,0.002,59239.0,59238.0,0.447178]
[1723857505449,0.002,59239.0,59238.0,0.52145692]
[1723857505653,0.002,59239.0,59238.0,0.58560691]
[1723857507554,0.002,59239.0,59238.0,0.22480691]
[1723857507740,0.002,59239.0,59238.0,0.58560691]
[1723857509145,0.002,59239.0,59238.0,0.58560645]
[1723857509554,0.05054825,59245.0,59241.0,0.084374]
[1723857509860,0.01,59245.0,59244.0,0.04993191]
[1723857510154,0.06054825,59245.0,59244.0,0.07427847]
[1723857510744,0.06154825,59245.0,59244.0,0.07427847]
[1723857510950,0.06154825,59245.0,59244.0,0.0742786]
[1723857511154,0.011,59245.0,59244.0,0.12421051]
[1723857511349,0.1044,59245.0,59244.0,0.12421051]
[1723857511548,0.1044,59245.0,59244.0,0.0742786]
[1723857511752,0.1044,59245.0,59244.0,0.0752786]
[1723857512254,0.17180171,59245.0,59244.0,0.0752786]
[1723857512460,0.17080171,59245.0,59244.0,0.0762786]
[1723857513264,0.1034,59245.0,59244.0,0.07627896]
[1723857513560,0.1034,59245.0,59244.0,0.002]
[1723857513860,1.454928,59245.0,59244.0,0.12623092]
[1723857514047,0.5064,59244.0,59236.0,0.06657588]
[1723857514246,0.084378,59238.0,59237.0,0.03714333]
[1723857514555,0.424378,59238.0,59237.0,0.03714333]
[1723857514752,1.330818,59238.0,59237.0,0.03714333]
[1723857514954,1.425518,59238.0,59237.0,0.03714333]
[1723857515144,0.084384,59234.0,59233.0,0.36105323]
[1723857515351,0.474384,59234.0,59233.0,0.39819983]
[1723857515651,1.44832089,59234.0,59233.0,0.39819983]
[1723857515852,1.49572089,59234.0,59233.0,0.39819983]
[1723857516059,1.49572089,59234.0,59233.0,0.03739983]
[1723857516255,1.428264,59234.0,59233.0,0.03739983]
[1723857516458,1.428304,59234.0,59233.0,0.03739983]
[1723857517073,0.50648,59233.0,59226.0,0.04994244]
[1723857517361,0.084401,59222.0,59220.0,0.04994244]
[1723857517562,0.084404,59220.0,59219.0,0.00018734]
[1723857517758,0.084404,59220.0,59219.0,0.03734235]
[1723857518550,0.082404,59220.0,59219.0,0.03734235]
[1723857519049,0.084444,59220.0,59219.0,0.03834235]
[1723857519248,0.084444,59220.0,59219.0,0.00118734]
[1723857519450,0.00204,59220.0,59219.0,0.03834132]
[1723857519658,0.00204,59220.0,59219.0,0.13174132]
[1723857519964,0.00204,59220.0,59219.0,0.12274632]
[1723857520158,0.00204,59220.0,59219.0,0.12374632]
[1723857520159,0.01304,59220.0,59219.0,0.12374632]
[1723857521666,0.01304,59220.0,59219.0,0.12374473]
[1723857522260,0.01304,59220.0,59219.0,0.08659234]
[1723857523160,0.01304,59220.0,59219.0,0.44739234]
[1723857524166,0.02304,59220.0,59219.0,0.44739234]
[1723857525771,0.02304,59220.0,59219.0,0.08659234]
[1723857526267,0.02304,59220.0,59219.0,0.44739234]
[1723857526764,0.02304,59220.0,59219.0,0.36298734]
[1723857527061,0.468244,59220.0,59219.0,0.00218734]
[1723857528357,0.107444,59220.0,59219.0,0.00218734]
[1723857528556,0.107444,59220.0,59219.0,0.36298734]
[1723857528959,0.107444,59220.0,59219.0,0.00218734]
[1723857539972,0.200844,59220.0,59219.0,0.00218734]
[1723857544176,0.25139774,59220.0,59219.0,0.00218734]
[1723857544680,0.200844,59220.0,59219.0,0.00218734]
[1723857544971,0.25141551,59220.0,59219.0,0.00218734]
[1723857545171,0.200844,59220.0,59219.0,0.00218734]
[1723857545567,0.25143127,59220.0,59219.0,0.00218734]
[1723857545769,0.200844,59220.0,59219.0,0.05215743]
[1723857546279,0.26824361,59220.0,59219.0,0.05215743]
[1723857549176,0.26824361,59220.0,59219.0,0.00218734]
[1723857549477,0.26824361,59220.0,59219.0,0.05215743]
[1723857550064,0.26824361,59220.0,59219.0,0.00218734]
[1723857550269,0.646048,59220.0,59219.0,0.00218734]
[1723857550469,0.0934,59217.0,59214.0,0.05024959]
[1723857550671,0.084411,59215.0,59214.0,0.05024959]
[1723857550888,0.414411,59215.0,59214.0,0.00025323]
[1723857551066,0.507811,59215.0,59214.0,0.00025323]
[1723857551478,0.57543262,59215.0,59214.0,0.00025323]
[1723857551774,0.57547262,59215.0,59214.0,0.00025323]
[1723857552682,0.8737954,59215.0,59214.0,0.00025323]
[1723857553473,0.8747954,59215.0,59214.0,0.00025323]
[1723857554173,0.8807954,59215.0,59214.0,0.00125323]
[1723857555083,0.89199238,59215.0,59214.0,0.00125323]
[1723857555474,0.89499238,59215.0,59214.0,0.00225323]
[1723857555883,0.80159238,59215.0,59214.0,0.00225323]
[1723857556072,0.89499238,59215.0,59214.0,0.00225323]
[1723857556275,0.89799238,59215.0,59214.0,0.00225323]
[1723857556976,0.53719238,59215.0,59214.0,0.00225323]
[1723857557179,0.89799238,59215.0,59214.0,0.00225323]
[1723857557393,1.88904338,59215.0,59214.0,0.00225323]
[1723857557583,2.04904338,59215.0,59214.0,0.00225323]
[1723857557784,2.13340811,59215.0,59214.0,0.00225323]
[1723857558373,2.04904338,59215.0,59214.0,0.00225323]
[1723857558688,2.13540811,59215.0,59214.0,0.00225323]
[1723857558886,2.05104338,59215.0,59214.0,0.00225323]
[1723857559275,1.65104338,59215.0,59214.0,0.00225323]
[1723857559480,1.49204338,59215.0,59214.0,0.00225323]
[1723857559786,1.31423238,59215.0,59214.0,0.00225323]
[1723857560090,1.40763238,59215.0,59214.0,0.00225323]
[1723857560381,0.90199238,59215.0,59214.0,0.00225323]
[1723857560776,0.084412,59214.0,59208.0,0.01120492]
[1723857560973,0.4542,59209.0,59203.0,0.04999636]
[1723857561177,0.22835245,59204.0,59203.0,0.01108335]
[1723857561380,0.547827,59204.0,59203.0,0.0743329]
[1723857562283,0.547867,59204.0,59203.0,0.0743329]
[1723857562785,0.547867,59204.0,59201.0,0.04999636]
[1723857562786,0.084429,59203.0,59201.0,0.04999636]
[1723857563089,0.084429,59202.0,59201.0,0.04999636]
[1723857563290,0.414429,59202.0,59201.0,0.12432646]
[1723857563981,0.414469,59202.0,59201.0,0.0743301]
[1723857564291,0.414469,59202.0,59201.0,0.12432646]
[1723857564487,0.414469,59202.0,59201.0,0.0743301]
[1723857564688,0.413469,59202.0,59201.0,0.0743301]
[1723857564990,0.413469,59202.0,59201.0,0.12432646]
[1723857565175,0.413469,59202.0,59201.0,0.0743301]
[1723857565378,0.414469,59202.0,59201.0,0.0773301]
[1723857566994,0.414469,59202.0,59201.0,0.003]
[1723857567200,0.414469,59202.0,59201.0,0.07733028]
[1723857567499,0.414469,59202.0,59201.0,0.003]
[1723857568584,0.419469,59202.0,59201.0,0.003]
[1723857568782,0.419469,59202.0,59198.0,0.00025323]
[1723857568783,0.084432,59201.0,59198.0,0.00025323]
[1723857568981,0.414432,59201.0,59199.0,0.03716712]
[1723857569187,0.414432,59201.0,59200.0,0.03716712]
[1723857569385,0.33,59201.0,59200.0,0.03716712]
[1723857569592,0.05198625,59207.0,59200.0,0.03716712]
[1723857569593,0.0934,59208.0,59201.0,0.50676]
[1723857569794,0.1134,59208.0,59207.0,0.445222]
[1723857569989,0.1134,59208.0,59207.0,0.51955497]
[1723857570293,0.1134,59208.0,59207.0,0.48238785]
[1723857571292,0.0001444,59215.0,59208.0,0.50668]
[1723857571484,0.05051547,59225.0,59214.0,0.4542]
[1723857571691,0.05051547,59230.0,59222.0,0.3608]
[1723857571991,0.28391547,59236.0,59229.0,0.3608]
[1723857572288,0.2334,59236.0,59229.0,0.3608]
[1723857572495,4.294e-05,59235.0,59229.0,0.3608]
[1723857573285,0.10004294,59235.0,59229.0,0.3608]
[1723857573486,0.10004294,59235.0,59229.0,0.3618]
[1723857574382,0.11404294,59235.0,59229.0,0.3618]
[1723857575303,0.12304294,59235.0,59231.0,0.3608]
[1723857576097,0.02304294,59235.0,59231.0,0.3608]
[1723857577588,0.02304294,59235.0,59233.0,0.084385]
[1723857579696,0.20304294,59235.0,59233.0,0.084385]
[1723857580705,0.02304294,59235.0,59233.0,0.084385]
[1723857581592,0.02304294,59235.0,59233.0,0.09647479]
[1723857581787,0.04304294,59235.0,59233.0,0.09647479]
[1723857582991,0.04304294,59235.0,59234.0,0.3608]
[1723857584192,0.02904294,59235.0,59234.0,0.3608]
[1723857584389,0.03404294,59235.0,59234.0,0.3608]
[1723857584591,0.04304294,59235.0,59234.0,0.3618]
[1723857585109,0.04304294,59235.0,59234.0,0.001]
[1723857585110,0.19163343,59235.0,59234.0,0.001]
[1723857585789,0.19163343,59235.0,59234.0,0.00090001]
[1723857588908,0.20269782,59235.0,59234.0,0.00090001]
[1723857591099,0.19163343,59235.0,59234.0,0.36170001]
[1723857591406,0.10754385,59235.0,59234.0,0.36170001]
[1723857591601,0.0703981,59235.0,59234.0,0.36170001]
[1723857591810,0.10765119,59235.0,59234.0,0.36170001]
[1723857593207,0.10765119,59235.0,59234.0,0.00090001]